[Event "53rd Mar Del Plata Open 2024"]
[Site "Mar Del Plata"]
[Date "2024.03.24"]
[Round "3.3"]
[White "Tristan, Leonardo"]
[Black "Tobares, Leandro"]
[Result "1-0"]
[ECO "D00"]
[WhiteElo "2521"]
[BlackElo "2174"]
[Annotator "TA"]
[PlyCount "37"]
[EventDate "2024.03.23"]
[EventType "swiss"]
[EventCountry "ARG"]
[SourceTitle "playchess.com"]
[Source "ChessBase"]
[SourceQuality "1"]
[TimeControl "5400+30"]

{[%evp 9,37,60,57,38,65,59,67,59,63,52,50,57,57,55,61,26,73,66,75,82,90,49,60,56,113,116,298,302,301,290]} 1. d4 {[%emt 0:04:17]} d5 {[%emt 0:00:24]} 2. Bf4 {[%emt 0:03:25]} e6 {[%emt 0:01:08]} 3. e3 {[%emt 0:00:52]} Bd6 {[%emt 0:00:47]} 4. Qg4 {[%emt 0:00:52]} Nf6 {[%emt 0:06:16]} 5. Qxg7 {[%emt 0:01:54]} Rg8 {[%emt 0:00:23][%cal Bh8g8,Bg8g6,Bg6g4][%mdl 32]} 6. Qh6 {[%emt 0:00:07]} Rg6 {[%emt 0:00:24]} 7. Qh4 {[%emt 0:00:27]} Rg4 {[%emt 0:00:44]} 8. Qh3 {[%emt 0:00:11] White is slightly better.} Bxf4 {[%emt 0:05:47]} 9. exf4 {[%emt 0:01:55]} Rxf4 {[%emt 0:03:50]} 10. Ne2 {[%emt 0:05:41]} Rg4 {[%emt 0:00:42][%cal Oc7c5]} 11. f3 {[%emt 0:06:03]} Rg8 {[%emt 0:03:47][%cal Oc7c5]} 12. Qh4 {[%emt 0:09:57]} Nbd7 {[%emt 0:02:40]} (12... Nc6 $11 {was preferrable.}) 13. g4 $16 {[%emt 0:06:58] g5 would now be deadly.} Nf8 {[%emt 0:03:40]} 14. Nbc3 {[%emt 0:01:55]} Ng6 {[%emt 0:08:07]} 15. Qg3 {[%emt 0:16:42]} Bd7 {[%emt 0:04:37]} 16. h4 {[%emt 0:02:02][%cal Bh2h4,Bh4h5][%mdl 32]} b5 {[%emt 0:08:00]} ({Better is} 16... Bc6 $14) 17. h5 {[%emt 0:00:48]} Ne7 {[%emt 0:03:42] [#]} (17... Nf8 $16 18. a3 h6) 18. Qf4 $18 {[%emt 0:02:32]} b4 {[%emt 0:02:29]} 19. Nd1 {[%emt 0:02:43] Weighted Error Value: White=0.06 (flawless) /Black=0.26 (precise) .  Loses game:     	---       	Black=1      Mistake:       	---       	Black=2      Inaccurate:     	White=2     	Black=1      OK:         	White=10    	Black=5} ({Don't do} 19. Qxf6 $6 bxc3 20. Nxc3 Nc6 21. Qxd8+ Kxd8 $18) 1-0

[Event "53rd Mar Del Plata Open 2024"]
[Site "Mar Del Plata"]
[Date "2024.03.25"]
[Round "3.4"]
[White "Acosta, Pablo Ismael"]
[Black "Jaque Gutierrez, Matias"]
[Result "1-0"]
[ECO "A09"]
[WhiteElo "2463"]
[BlackElo "2173"]
[Annotator "TA"]
[PlyCount "99"]
[EventDate "2024.03.23"]
[EventType "swiss"]
[EventCountry "ARG"]
[SourceTitle "playchess.com"]
[Source "ChessBase"]
[SourceQuality "1"]
[TimeControl "5400+30"]

{[%evp 9,99,-70,-72,-67,-49,-65,-55,-60,-42,-49,-31,-40,-40,-30,-29,-33,-6,-43,-35,-34,-28,-25,-16,-102,-27,-37,-41,-81,-81,-91,-70,-66,-41,-69,-58,-83,-60,-85,-80,-86,-86,-82,0,-11,6,15,5,17,15,20,22,23,89,92,107,91,102,105,108,108,216,194,207,202,297,277,390,296,308,306,348,343,401,282,385,373,532,512,734,703,1361,747,783,543,804,804,887,755,1992,1937,1647,1493]} 1. Nf3 {[%emt 0:05:08]} d5 {[%emt 0:00:10][%cal Bd7d5,Bd5d4][%mdl 32]} 2. c4 {[%emt 0:01:02]} d4 {[%emt 0:00:17]} 3. e3 {[%emt 0:02:04]} Nc6 {[%emt 0:00:20]} 4. Qa4 {[%emt 0:01:30]} Bd7 {[%emt 0:02:21]} 5. Qb3 {[%emt 0:02:22]} e5 {[%emt 0:02:09]} 6. exd4 {[%emt 0:00:07]} exd4 {[%emt 0:03:03]} 7. Be2 {[%emt 0:00:37][%cal Oe1g1]} Nf6 {[%emt 0:04:41]} 8. O-O {[%emt 0:00:49][%cal Of1e1] Black is slightly better.} Bc5 {[%emt 0:14:05]} 9. d3 {[%emt 0:02:52]} O-O {[%emt 0:02:41]} 10. Bg5 {[%emt 0:03:26][%cal Ob1d2]} h6 {[%emt 0:01:01]} 11. Bxf6 {[%emt 0:01:27]} Qxf6 {[%emt 0:00:06]} 12. Nbd2 {[%emt 0:00:03]} Bf5 {[%emt 0:09:30] Against Ne4} 13. Rfe1 {[%emt 0:02:49]} a5 {[%emt 0:04:57]} 14. a3 {[%emt 0:01:14][%cal Od2e4]} a4 {[%emt 0:02:09]} 15. Qc2 {[%emt 0:00:49] White is weak on the dark squares} g5 {[%emt 0:07:19] ...g4 would now be deadly.} 16. Nf1 {[%emt 0:06:10]} (16. h3 $1 $11 {keeps the balance.}) 16... Bd6 {[%emt 0:06:25]} (16... g4 $17 17. N3d2 Qg6) 17. Ng3 {[%emt 0:02:42]} g4 $36 {[%emt 0:02:53][%mdl 2048] Black is pushing.} 18. Nd2 {[%emt 0:09:51]} Bxg3 {[%emt 0:00:48]} 19. hxg3 {[%emt 0:02:13]} Rfe8 {[%emt 0:01:15]} 20. Bf1 {[%emt 0:03:29]} Qg6 {[%emt 0:01:36]} 21. c5 {[%emt 0:07:28]} Ne5 {[%emt 0:02:33][%cal Rf5d3]} 22. Ne4 {[%emt 0:00:47]} Re7 {[%emt 0:04:53]} 23. Rac1 {[%emt 0:07:44]} Kf8 {[%emt 0:05:34]} 24. Qd2 {[%emt 0:01:52]} Nc6 {[%emt 0:05:01] Against Qb4} 25. Qf4 {[%emt 0:05:12]} Bxe4 {[%emt 0:01:46]} (25... Rae8 $17) 26. Rxe4 $11 {[%emt 0:01:58]} Rxe4 {[%emt 0:00:05]} 27. dxe4 {[%emt 0:01:13]} Qg5 {[%emt 0:00:23]} 28. Rd1 {[%emt 0:11:01]} Qxf4 {[%emt 0:03:45]} (28... Qxc5 29. Qxh6+ (29. Qxg4 Re8 $14) 29... Kg8 30. Be2 $14) 29. gxf4 {[%emt 0:00:04][%mdl 4096] Endgame. KRB-KRN} Ra5 {[%emt 0:00:32] Dodges Bb5} 30. Rc1 {[%emt 0:00:04][%cal Bd1c1,Bc1c4,Bc4d4][%mdl 32]} Nb8 {[%emt 0:04:59] [#]} (30... Ke7 $11 {remains equal.}) 31. Rc4 $1 $16 {[%emt 0:00:48] White leaves nothing to chance now.} Nd7 {[%emt 0:00:46]} 32. c6 {[%emt 0:00:44]} bxc6 {[%emt 0:00:18]} 33. Rxd4 {[%emt 0:00:16]} Ke7 {[%emt 0:02:28]} 34. Kh2 {[%emt 0:00:33] White is more active.} Rh5+ {[%emt 0:02:04]} (34... Rc5 $16) 35. Kg3 $18 {[%emt 0:01:29]} Rh1 {[%emt 0:00:05]} 36. Be2 {[%emt 0:00:35]} h5 {[%emt 0:01:23] [#]} (36... Nb6 {might work better.} 37. Rd1 (37. Bxg4 c5 $18) (37. Kxg4 h5+ 38. Kf3 Rc1 $18) 37... Rxd1 38. Bxd1 h5) 37. Rd1 $1 {[%emt 0:02:25]} ({Inferior is} 37. Rxa4 f5 38. exf5 Nf6 39. Bxg4 (39. f3 $2 h4+ 40. Kf2 g3+ 41. Ke3 h3 $19) 39... hxg4 $15) 37... h4+ {[%emt 0:03:19][%cal Bh5h4,Bh4h3][%mdl 32]} 38. Kxg4 {[%emt 0:00:18]} Rh2 {[%emt 0:00:16]} 39. Kf3 {[%emt 0:04:28]} h3 {[%emt 0:00:05]} 40. g3 {[%emt 0:00:42]} Nc5 {[%emt 0:01:09]} 41. Ke3 {[%emt 0:00:11] e5 is the strong threat.} Ne6 {[%emt 0:01:06]} 42. Bg4 {[%emt 0:00:46] Strongly threatening f5.} c5 {[%emt 0:00:40]} (42... f6 {keeps fighting.} 43. Bf3 Ke8) 43. Bxe6 {[%emt 0:00:17] White is clearly winning.} fxe6 {[%emt 0:00:13] KR-KR} 44. Kf3 {[%emt 0:00:05] Hoping for Rg1.} c4 {[%emt 0:00:40]} 45. e5 {[%emt 0:00:27]} Rg2 {[%emt 0:00:22] Dodges Rg1} 46. Rh1 {[%emt 0:00:33]} Kd7 {[%emt 0:00:23]} 47. g4 {[%emt 0:00:07][%cal Bg3g4,Bg4g5][%mdl 32]} Kc6 {[%emt 0:00:17]} 48. g5 {[%emt 0:00:34]} Kd5 {[%emt 0:00:04]} 49. Rxh3 {[%emt 0:00:48]} Rg1 {[%emt 0:00:06]} 50. Rg3 {[%emt 0:00:02] Weighted Error Value: White=0.15 (very precise) /Black=0.36.  Mistake:       	White=1     	Black=6      Inaccurate:     	White=3     	Black=4      OK:         	White=13    	Black=10     Best:        	White=2     	Black=1      Strong:       	White=2     	---} 1-0

[Event "53rd Mar Del Plata Open 2024"]
[Site "Mar Del Plata"]
[Date "2024.03.25"]
[Round "3.5"]
[White "Spata, German"]
[Black "Navarrete Sandoval, Francisco"]
[Result "1-0"]
[ECO "E60"]
[WhiteElo "2421"]
[BlackElo "2173"]
[Annotator "TA"]
[PlyCount "103"]
[EventDate "2024.03.23"]
[EventType "swiss"]
[EventCountry "ARG"]
[SourceTitle "playchess.com"]
[Source "ChessBase"]
[SourceQuality "1"]
[TimeControl "5400+30"]

{[%evp 18,103,42,9,16,16,23,26,54,48,54,50,89,76,169,67,64,60,58,59,65,61,75,63,120,86,85,86,88,79,98,90,126,95,122,82,116,88,146,136,167,104,104,101,106,112,114,96,125,122,129,108,109,114,114,114,121,115,113,95,98,100,137,131,226,229,240,234,224,235,289,283,276,237,1047,1018,1356,1065,29963,29965,29970,29971,29971,29971,29959,29944,29979,29980]} 1. Nf3 {[%emt 0:00:04]} Nf6 {[%emt 0:00:25]} 2. e3 {[%emt 0:01:10]} g6 {[%emt 0:00:40]} 3. b3 {[%emt 0:00:20]} Bg7 {[%emt 0:00:06]} 4. Bb2 {[%emt 0:00:13]} O-O {[%emt 0:00:47]} 5. d4 {[%emt 0:00:18]} d6 {[%emt 0:00:15]} 6. Be2 {[%emt 0:00:29]} Nbd7 {[%emt 0:00:30]} 7. O-O {[%emt 0:00:53]} e5 {[%emt 0:00:47]} 8. dxe5 {[%emt 0:00:05]} Ng4 {[%emt 0:00:06]} 9. c4 {[%emt 0:00:18]} Ngxe5 {[%emt 0:02:37]} 10. Nc3 {[%emt 0:00:16]} Nxf3+ {[%emt 0:01:30]} 11. Bxf3 {[%emt 0:00:13]} Re8 {[%emt 0:02:51]} 12. Qd2 {[%emt 0:00:14]} Nf6 {[%emt 0:06:22] White has an edge.} 13. Rfe1 {[%emt 0:05:54]} a5 {[%emt 0:03:05]} 14. Rad1 {[%emt 0:01:17][%cal Oc4c5,Ba1d1,Bd1c1,Bc1c4][%mdl 32]} Qe7 {[%emt 0:01:37]} 15. h3 {[%emt 0:05:08]} Rb8 {[%emt 0:02:41]} (15... Nd7 $16) 16. Nd5 {[%emt 0:02:05]} (16. Nb5 $18) 16... Nxd5 $14 {[%emt 0:00:23]} 17. Bxg7 {[%emt 0:00:30]} Kxg7 {[%emt 0:01:25]} 18. cxd5 {[%emt 0:00:12]} b6 {[%emt 0:00:34][%cal Bb7b6,Bb6b5][%mdl 32]} 19. Rc1 {[%emt 0:00:29]} Rb7 {[%emt 0:02:58]} 20. Rc4 {[%emt 0:01:43]} Bd7 {[%emt 0:07:16]} (20... Qf6 $14) 21. Rec1 {[%emt 0:08:10]} Rc8 {[%emt 0:03:15]} 22. Bg4 {[%emt 0:02:21]} Bxg4 {[%emt 0:08:28]} 23. hxg4 {[%emt 0:01:43]} b5 {[%emt 0:05:18]} 24. Rc6 {[%emt 0:03:03]} b4 {[%emt 0:00:43]} 25. Qd3 {[%emt 0:05:35]} Qd7 {[%emt 0:03:08] Black is weak on the light squares} 26. f3 {[%emt 0:04:54]} Ra8 {[%emt 0:00:34]} 27. e4 {[%emt 0:01:48] White is more active.} a4 {[%emt 0:07:57]} (27... Qe7 $142) 28. Ra6 $16 {[%emt 0:01:53]} Qd8 {[%emt 0:02:11]} 29. bxa4 {[%emt 0:04:11]} (29. Rxa4 $18 Rxa4 30. bxa4) 29... Rxa6 {[%emt 0:00:28]} 30. Qxa6 $18 {[%emt 0:00:08][%mdl 4096] Endgame. KQR-KQR} Qg5 {[%emt 0:00:14]} 31. Re1 {[%emt 0:08:34]} Qd2 {[%emt 0:02:03][%csl LRa2,LRe1]} 32. Kf1 {[%emt 0:03:46]} Rb6 {[%emt 0:07:29]} 33. Qc4 {[%emt 0:00:27]} Qc3 {[%emt 0:06:00]} 34. Qxc3+ {[%emt 0:03:47]} bxc3 $16 {[%emt 0:00:02] KR-KR} 35. Rc1 {[%emt 0:00:21]} c6 {[%emt 0:00:28]} 36. dxc6 {[%emt 0:11:31]} (36. Rxc3 cxd5 37. Ra3 (37. exd5 Rb1+ 38. Ke2 Rb2+ 39. Kd3 Rxa2 $16) 37... dxe4) 36... Rxc6 {[%emt 0:00:22]} 37. Ke2 {[%emt 0:02:08]} Rc4 {[%emt 0:00:32]} 38. Kd3 {[%emt 0:00:37]} (38. a3 {simplifies} Rxa4 39. Rxc3 h5 40. gxh5 gxh5 41. Rd3) 38... Rxa4 {[%emt 0:00:02]} 39. Rc2 {[%emt 0:00:32]} Ra3 {[%emt 0:00:19]} 40. Kc4 $1 {[%emt 0:00:09][%cal Oc4b4] Kb4! would now be deadly.} Kf6 {[%emt 0:01:13] [#]} (40... Ra8 $16 41. Kb3 (41. Rxc3 Rxa2 42. g3 Rg2 $11) (41. Kxc3 Kf6 $16) 41... Rb8+ 42. Kxc3 Rc8+ 43. Kd3 Ra8) 41. Kb4 $1 $18 {[%emt 0:00:05]} (41. Rxc3 Rxa2 42. g3 h6 $11) 41... Ra8 {[%emt 0:00:28] [#]} 42. a4 $1 {[%emt 0:00:55][%cal Ba2a4,Ba4a5,Ba5a6,Ba6a7][%mdl 32]} ({Don't play} 42. Kxc3 $6 Ke6 $16) ({Weaker is} 42. Rxc3 Rxa2 43. Kc4 Rxg2 $15) 42... Ke5 {[%emt 0:00:25] Threatens to win with ...Kd4.} 43. Rxc3 {[%emt 0:01:53]} f5 {[%emt 0:00:05]} 44. exf5 {[%emt 0:02:12]} gxf5 {[%emt 0:00:21]} 45. gxf5 {[%emt 0:00:26]} Kxf5 $2 {[%emt 0:00:13]} (45... Rb8+ 46. Ka3 Kxf5) 46. a5 {[%emt 0:06:01]} h5 {[%emt 0:00:48]} 47. Ra3 {[%emt 0:01:42] And now a6 would win.} Rb8+ {[%emt 0:00:09]} 48. Kc4 {[%emt 0:01:18] White mates.} Ke5 {[%emt 0:01:47]} 49. a6 {[%emt 0:00:50]} d5+ {[%emt 0:00:36]} 50. Kc5 {[%emt 0:00:16]} Rc8+ {[%emt 0:00:32]} 51. Kb6 {[%emt 0:00:18]} Rc2 {[%emt 0:03:16]} 52. a7 {[%emt 0:13:05] Weighted Error Value: White=0.10 (very precise) /Black=0.37.  Mistake:       	White=2     	Black=5      Inaccurate:     	White=1     	Black=7      OK:         	White=12    	Black=7      Best:        	White=3     	Black=5      Strong:       	White=3     	---} 1-0

[Event "53rd Mar Del Plata Open 2024"]
[Site "Mar Del Plata"]
[Date "2024.03.24"]
[Round "3.6"]
[White "Marrujo Pardo, Mauricio Emmanuel"]
[Black "Rodriguez, Mathias"]
[Result "1-0"]
[ECO "B33"]
[WhiteElo "2337"]
[BlackElo "2157"]
[Annotator "RC"]
[PlyCount "65"]
[EventDate "2024.03.23"]
[EventType "swiss"]
[EventCountry "ARG"]
[SourceTitle "playchess.com"]
[Source "ChessBase"]
[SourceQuality "1"]
[TimeControl "5400+30"]

1. e4 {[%emt 0:00:04]} c5 {[%emt 0:00:02]} 2. Nf3 {[%emt 0:00:16]} Nc6 {[%emt 0:00:07]} 3. d4 {[%emt 0:00:02]} cxd4 {[%emt 0:00:08]} 4. Nxd4 {[%emt 0:00:04]} Nf6 {[%emt 0:00:09]} 5. Nc3 {[%emt 0:00:04]} e5 {[%emt 0:00:11]} 6. Ndb5 {[%emt 0:00:05]} d6 {[%emt 0:00:08]} 7. Bg5 {[%emt 0:00:06]} a6 {[%emt 0:00:07]} 8. Na3 {[%emt 0:00:07]} b5 {[%emt 0:00:08]} 9. Nd5 {[%emt 0:00:07]} Be7 {[%emt 0:00:07]} 10. Bxf6 {[%emt 0:00:11]} Bxf6 {[%emt 0:00:04]} 11. c4 {[%emt 0:00:05]} b4 {[%emt 0:00:37]} 12. Nc2 {[%emt 0:00:04]} a5 {[%emt 0:02:10]} 13. g3 {[%emt 0:00:09]} Bg5 {[%emt 0:01:18]} 14. h4 {[%emt 0:00:09]} Bh6 {[%emt 0:00:03]} 15. Bh3 {[%emt 0:00:07]} Be6 {[%emt 0:02:20]} 16. Bxe6 {[%emt 0:17:47]} fxe6 {[%emt 0:01:51]} 17. Qh5+ {[%emt 0:01:48]} Kf8 {[%emt 0:00:04]} 18. Qf3+ {[%emt 0:01:08]} Ke8 {[%emt 0:02:53]} 19. Nde3 {[%emt 0:08:27]} Qf6 {[%emt 0:06:00]} 20. Qe2 {[%emt 0:10:20]} Bxe3 {[%emt 0:07:39]} 21. Qxe3 {[%emt 0:02:13]} Nd4 {[%emt 0:03:33]} 22. O-O-O {[%emt 0:01:59]} Nxc2 {[%emt 0:04:22]} 23. Kxc2 {[%emt 0:01:08]} Rc8 {[%emt 0:03:23]} 24. Rxd6 {[%emt 0:11:37]} Rxc4+ {[%emt 0:07:33]} 25. Kb1 {[%emt 0:00:15]} Ke7 {[%emt 0:10:46]} 26. Rhd1 {[%emt 0:10:04]} Rhc8 {[%emt 0:01:01]} 27. Qa7+ {[%emt 0:11:23]} Kf8 {[%emt 0:05:02]} 28. f3 {[%emt 0:00:36]} R4c7 {[%emt 0:13:15]} 29. Qxa5 {[%emt 0:02:20]} Qxf3 {[%emt 0:02:26]} 30. Qxb4 {[%emt 0:00:05]} Kf7 {[%emt 0:01:40]} 31. a4 {[%emt 0:02:06]} Rc4 {[%emt 0:02:05]} 32. Qb7+ {[%emt 0:00:42]} Kf6 {[%emt 0:00:05]} 33. Rxe6+ {[%emt 0:00:10]} 1-0

[Event "53rd Mar Del Plata Open 2024"]
[Site "Mar Del Plata"]
[Date "2024.03.24"]
[Round "3.7"]
[White "Siccardi, Pablo Daniel"]
[Black "Espinoza Palomino, Willyam"]
[Result "0-1"]
[ECO "A40"]
[WhiteElo "2095"]
[BlackElo "2400"]
[Annotator "TA"]
[PlyCount "58"]
[EventDate "2024.03.23"]
[EventType "swiss"]
[EventCountry "ARG"]
[SourceTitle "playchess.com"]
[Source "ChessBase"]
[SourceQuality "1"]
[TimeControl "5400+30"]

{[%evp 9,58,-25,-20,-27,-12,-6,-1,-11,-7,-31,0,-80,-84,-79,-59,-175,-176,-159,-81,-93,-85,-73,-76,-91,-88,-154,-153,-177,-95,-90,-76,-74,-86,-80,-62,-66,-54,-86,-87,-74,-81,-89,-86,-88,-86,-126,-115,-387,-412,-407,-406]} 1. d4 {[%emt 0:02:54]} Nf6 {[%emt 0:00:21]} 2. c4 {[%emt 0:00:08]} e6 {[%emt 0:01:33]} 3. a3 {[%emt 0:00:07]} b6 {[%emt 0:07:12]} 4. Nc3 {[%emt 0:00:12]} Bb7 {[%emt 0:00:07]} 5. f3 {[%emt 0:00:26]} d5 {[%emt 0:00:35]} 6. cxd5 {[%emt 0:00:13]} exd5 {[%emt 0:00:06]} 7. Bg5 {[%emt 0:00:09]} Be7 {[%emt 0:00:46]} 8. e3 {[%emt 0:00:18] The position is equal.} O-O {[%emt 0:01:43]} 9. Bd3 {[%emt 0:00:20]} Re8 {[%emt 0:07:44]} 10. Bh4 {[%emt 0:05:35]} (10. Nge2 $11 {remains equal.}) 10... Nh5 $17 {[%emt 0:08:30]} 11. Bf2 {[%emt 0:01:42]} Bg5 $1 {[%emt 0:01:28]} 12. g4 {[%emt 0:06:45]} (12. Nge2 $15) 12... Nf4 $19 {[%emt 0:00:35]} 13. Bf1 {[%emt 0:01:12] [#] Wards off Ng2+} Bh4 {[%emt 0:00:45]} ({Better is} 13... Ng6 $1 14. h4 Rxe3+ (14... Bxh4 15. Bxh4 Nxh4 16. Qd2 $15) (14... Nxh4 15. f4 $11) (14... Bxe3 15. Bxe3 Rxe3+ 16. Kf2 $17) 15. Nge2 Bxh4 16. Rxh4 Rxc3 (16... Rxf3 17. Rh3 $16)) 14. Qd2 $17 {[%emt 0:00:48]} c5 {[%emt 0:34:43]} 15. O-O-O {[%emt 0:10:36]} cxd4 {[%emt 0:04:58]} 16. Bxh4 {[%emt 0:09:00]} Qxh4 {[%emt 0:09:08]} 17. Qxd4 {[%emt 0:02:43]} (17. exd4 $142 Ne6 18. Nb5) 17... Ne6 {[%emt 0:00:31]} 18. Qd2 {[%emt 0:01:46][%cal Oc1b1]} Nd7 {[%emt 0:01:32]} ({Black should play} 18... Nc6 $19 {...Rad8 would now be deadly.} 19. Nge2 Na5) 19. Bb5 {[%emt 0:03:38]} Ndc5 {[%emt 0:00:29] Strongly threatening ...Nb3+.} 20. Kb1 {[%emt 0:01:07] [#]} Red8 {[%emt 0:00:33] White must now prevent ...d4.} 21. Nge2 {[%emt 0:02:19] [#]} d4 $1 {[%emt 0:02:00]} 22. exd4 {[%emt 0:01:54] Hoping for Qe3.} Bxf3 {[%emt 0:00:23]} 23. Qe1 {[%emt 0:01:47]} Qxe1 {[%emt 0:03:37]} 24. Rhxe1 {[%emt 0:00:21]} Ne4 $36 {[%emt 0:01:03][%mdl 2048] Black is really pushing. Black is more active.} 25. Nxe4 {[%emt 0:02:13]} Bxe4+ {[%emt 0:00:02]} 26. Bd3 {[%emt 0:01:47]} Bf3 {[%emt 0:00:06]} 27. Bf5 {[%emt 0:01:13]} Rd6 {[%emt 0:04:46]} 28. Rd3 $2 {[%emt 0:05:38][%mdl 8192]} (28. d5 $17 {might work better.} Rad8 (28... Rxd5 $2 29. Rxd5 Bxd5 30. Nc3 $19) (28... Bxd5 29. Nc3 $16) 29. Kc1 (29. Rd3 $2 Bxe2 30. Rxe2 Nf4 $19) 29... Bxd5 (29... Rxd5 30. Rxd5 Bxd5 31. Nc3 $19) 30. Nc3) 28... Bxe2 $19 {[%emt 0:00:28]} 29. Rxe2 {[%emt 0:00:14]} Nf4 {[%emt 0:00:09] Weighted Error Value: White=0.37/Black=0.10 (very precise) .  Loses game:     	White=1     	---        Mistake:       	White=3     	Black=2      Inaccurate:     	White=2     	---        OK:         	White=12    	Black=10     Best:        	White=1     	Black=4      Strong:       	---       	Black=1} ({Less strong is} 29... Nxd4 30. Be4 Rad8 (30... Nxe2 31. Rxd6 Rf8 32. Bf3 $14) 31. Re1 $17) (29... Rxd4 30. Rde3 $17) 0-1

[Event "53rd Mar Del Plata Open 2024"]
[Site "Mar Del Plata"]
[Date "2024.03.25"]
[Round "3.8"]
[White "Pereyra, Horacio"]
[Black "Valerga, Diego"]
[Result "1/2-1/2"]
[ECO "B19"]
[WhiteElo "2139"]
[BlackElo "2442"]
[Annotator "TA"]
[PlyCount "54"]
[EventDate "2024.03.23"]
[EventType "swiss"]
[EventCountry "ARG"]
[SourceTitle "playchess.com"]
[Source "ChessBase"]
[SourceQuality "1"]
[TimeControl "5400+30"]

{[%evp 33,54,15,8,0,-12,-22,-19,-14,0,0,0,0,0,0,0,0,0,0,0,0,0,0,0]} 1. e4 {[%emt 0:00:13]} c6 {[%emt 0:00:18]} 2. d4 {[%emt 0:01:15]} d5 {[%emt 0:00:08]} 3. Nd2 {[%emt 0:06:41][%cal Bb1d2,Bd2e4,Be4g3][%mdl 32]} dxe4 {[%emt 0:00:19]} 4. Nxe4 {[%emt 0:00:07]} Bf5 {[%emt 0:01:24]} 5. Ng3 {[%emt 0:00:58]} Bg6 {[%emt 0:00:07]} 6. Nf3 {[%emt 0:00:22]} Nd7 {[%emt 0:00:23]} 7. h4 {[%emt 0:01:13][%cal Bh2h4,Bh4h5][%mdl 32]} h6 {[%emt 0:00:26]} 8. h5 {[%emt 0:01:15]} Bh7 {[%emt 0:00:07]} 9. Bd3 {[%emt 0:00:49]} Bxd3 {[%emt 0:00:09]} 10. Qxd3 {[%emt 0:00:06]} e6 {[%emt 0:00:05]} 11. Bd2 {[%emt 0:01:03]} Ngf6 {[%emt 0:00:30]} 12. O-O-O {[%emt 0:01:36]} Qc7 {[%emt 0:00:12]} 13. Qe2 {[%emt 0:04:15]} O-O-O {[%emt 0:02:18]} 14. Ne5 {[%emt 0:06:19]} Nb6 {[%emt 0:00:16]} 15. Ba5 {[%emt 0:08:30]} Rd5 {[%emt 0:00:21]} 16. Bxb6 {[%emt 0:02:25]} axb6 {[%emt 0:00:11]} 17. c4 {[%emt 0:01:20]} Rd8 {[%emt 0:05:22] The position is equal.} 18. Kb1 {[%emt 0:08:51]} c5 {[%emt 0:15:45]} 19. Nf3 {[%emt 0:06:54]} (19. d5 {simplifies} exd5 20. Ng4 Nxg4 21. Qxg4+ Qd7 22. Qxd7+ Rxd7 23. cxd5 Be7 24. Nf5) 19... cxd4 {[%emt 0:10:13]} 20. Nxd4 {[%emt 0:01:03]} (20. Rxd4 {simplifies} Bc5 21. Rxd8+ Rxd8 22. a3) 20... Bc5 {[%emt 0:00:11]} 21. Nb5 {[%emt 0:04:38]} Qf4 {[%emt 0:01:30]} 22. Qc2 {[%emt 0:01:39]} Qxf2 {[%emt 0:10:50]} ({Much worse is} 22... Bxf2 23. Ne2 Qb8 (23... Qe5 24. Nec3 $18) 24. Nec3 $16) 23. Qa4 {[%emt 0:00:28][%cal Ra4a8] [#] Dancing on a razor blade.} Qxg3 {[%emt 0:00:17]} 24. Qa8+ {[%emt 0:00:52]} Qb8 {[%emt 0:00:06]} 25. Na7+ {[%emt 0:00:20]} Kc7 {[%emt 0:00:29]} 26. Nb5+ {[%emt 0:00:06]} Kc8 {[%emt 0:07:07]} 27. Na7+ {[%emt 0:00:07]} Kc7 {[%emt 0:44:56] Not much happened in this game.   Weighted Error Value: White=0.03 (flawless) /Black=0.02 (flawless) .  OK:         	White=4     	Black=5      Best:        	White=3     	---} 1/2-1/2